bitfinex/quotes_SOLUSD_20250821
["timestamp","ask_amount","ask_price","bid_price","bid_amount"]
[1755775388437,4.86019936,185.14,185.13,0.03]
[1755775388746,5.56019936,185.14,185.13,10.03]
[1755775389425,5.56019936,185.14,185.13,0.03]
[1755775390162,5.56019936,185.14,185.11,0.03]
[1755775390321,4.86019936,185.12,185.1,89.8]
[1755775390523,5.56019936,185.11,185.1,10.0]
[1755775392569,5.56019936,185.11,185.09,0.03]
[1755775392745,4.86019936,185.1,185.09,0.03]
[1755775392927,5.56019936,185.1,185.09,0.03]
[1755775394243,5.56019936,185.1,185.09,10.03]
[1755775394428,5.56019936,185.1,185.09,0.03]
[1755775394630,4.86019936,185.1,185.09,0.03]
[1755775394951,5.56019936,185.1,185.09,0.03]
[1755775402458,4.86019936,185.1,185.09,0.03]
[1755775403661,5.57019936,185.1,185.09,0.03]
[1755775408468,4.86019936,185.1,185.09,0.03]
[1755775411643,5.57019936,185.1,185.09,0.03]
[1755775412945,4.86019936,185.1,185.09,0.03]
[1755775414751,3.63049369,185.12,185.09,121.97]
[1755775414985,3.69062001,185.15,185.11,10.0]
[1755775415275,0.06,185.15,185.12,10.66]
[1755775416168,4.86019936,185.13,185.12,10.0]
[1755775418352,4.86019936,185.13,185.12,10.66]
[1755775419054,4.86019936,185.13,185.12,90.46]
[1755775419260,0.06,185.15,185.13,10.0]
[1755775419580,0.06,185.15,185.14,52.08]
[1755775419947,0.06,185.15,185.14,52.74]
[1755775420549,4.92019936,185.15,185.14,52.74]
[1755775423654,4.92019936,185.15,185.14,52.08]
[1755775425180,5.63019936,185.15,185.14,10.0]
[1755775425366,5.63019936,185.15,185.13,79.8]
[1755775425367,5.63019936,185.15,185.13,121.82]
[1755775425561,4.86019936,185.14,185.13,121.82]
[1755775425759,5.57019936,185.14,185.13,79.8]
[1755775427883,0.06,185.15,185.13,79.8]
[1755775428183,4.86019936,185.14,185.13,79.8]
[1755775428584,4.86019936,185.14,185.13,89.8]
[1755775428878,4.86019936,185.14,185.13,90.51]
[1755775429269,4.86019936,185.14,185.13,10.71]
[1755775431588,5.53019936,185.14,185.13,10.0]
[1755775432210,4.86019936,185.14,185.13,10.0]
[1755775432491,0.06,185.15,185.14,10.0]
[1755775432655,4.92019936,185.15,185.14,10.0]
[1755775433883,4.92019936,185.15,185.12,52.71]
[1755775434060,0.06,185.15,185.14,10.0]
[1755775434264,4.92019936,185.15,185.12,52.71]
[1755775434479,0.06,185.15,185.14,10.0]
[1755775435191,0.06,185.15,185.14,89.8]
[1755775435392,0.73,185.15,185.14,79.8]
[1755775435559,5.59019936,185.15,185.14,79.8]
[1755775435765,5.59019936,185.15,185.14,89.8]
[1755775436071,5.59019936,185.15,185.14,79.8]
[1755775436772,5.59019936,185.15,185.14,89.8]
[1755775438386,0.06,185.15,185.14,52.65]
[1755775438586,4.92019936,185.15,185.14,52.65]
[1755775438889,4.92019936,185.15,185.14,10.71]
[1755775439078,4.92019936,185.15,185.14,51.94]
[1755775439477,4.92019936,185.15,185.14,52.65]
[1755775439793,4.92019936,185.15,185.14,10.0]
[1755775439989,4.92019936,185.15,185.14,51.92]
[1755775440378,4.92019936,185.15,185.14,41.92]
[1755775440591,4.92019936,185.15,185.14,51.92]
[1755775440970,4.92019936,185.15,185.14,41.92]
[1755775441172,4.92019936,185.15,185.14,51.92]
[1755775442800,4.92019936,185.15,185.14,52.63]
[1755775443091,4.92019936,185.15,185.14,51.92]
[1755775443301,4.92019936,185.15,185.14,52.63]
[1755775443676,4.92019936,185.15,185.14,51.92]
[1755775447202,4.92019936,185.15,185.14,52.63]
[1755775448205,4.92019936,185.15,185.14,51.92]
[1755775449382,5.59019936,185.15,185.14,10.0]
[1755775449586,5.59019936,185.15,185.14,51.86]
[1755775449978,4.92019936,185.15,185.14,51.86]
[1755775452415,4.92019936,185.15,185.14,52.57]
[1755775452981,4.92019936,185.15,185.14,132.37]
[1755775455000,0.06,185.15,185.14,132.37]
[1755775455206,4.92019936,185.15,185.14,132.37]
[1755775456202,4.92019936,185.15,185.14,137.2902]
[1755775456380,0.06,185.15,185.14,137.2902]
[1755775458295,0.06,185.16,185.15,89.74]
[1755775458496,0.06,185.16,185.15,95.27019936]
[1755775458694,0.06,185.16,185.15,90.41]
[1755775459085,0.06,185.16,185.15,92.57503]
[1755775464176,0.06,185.16,185.15,111.03082337]
[1755775464381,0.06,185.16,185.15,111.02505652]
[1755775464899,0.06,185.16,185.15,109.27746271]
[1755775467785,0.06,185.18,185.17,79.62]
[1755775467989,0.06,185.18,185.17,121.38]
[1755775468289,0.06,185.18,185.17,132.05]
[1755775468485,0.06,185.18,185.17,134.214795]
[1755775469929,0.06,185.18,185.17,137.3216337]
[1755775472101,0.06,185.18,185.17,134.214795]
[1755775474141,0.06,185.18,185.17,133.544795]
[1755775476432,0.06,185.18,185.17,91.784795]
[1755775476635,0.75,185.18,185.17,133.544795]
[1755775478327,0.06,185.18,185.17,133.544795]
[1755775479609,0.75,185.18,185.17,133.544795]
[1755775480220,0.06,185.18,185.17,133.544795]
[1755775480936,0.06,185.18,185.17,91.784795]
[1755775481227,3.8568387,185.18,185.17,131.36]
[1755775483027,3.8568387,185.18,185.17,131.39]
[1755775483404,3.8568387,185.18,185.17,89.65]
[1755775483620,3.8568387,185.18,185.17,131.39]
[1755775484327,3.85880883,185.18,185.17,131.39]
[1755775484542,3.85880883,185.18,185.17,121.39]
[1755775484704,0.75,185.18,185.17,121.39]
[1755775484907,5.60779031,185.18,185.17,121.39]
[1755775485438,5.60779031,185.18,185.17,41.77]
[1755775485734,5.60779031,185.18,185.17,0.03]
[1755775488513,5.60779031,185.18,185.17,79.83]
[1755775498448,5.60779031,185.18,185.17,90.49]
[1755775498449,4.91779031,185.18,185.17,90.49]
[1755775499024,4.91779031,185.18,185.17,10.69]
[1755775499025,0.06,185.18,185.17,10.69]
[1755775503328,0.06,185.18,185.17,90.49]
[1755775507760,0.06,185.18,185.17,93.59665595]
[1755775508123,0.06,185.2,185.19,89.68]
[1755775508329,0.06,185.2,185.19,131.42]
[1755775508527,0.06,185.2,185.19,132.08]
[1755775509525,0.06,185.2,185.19,89.68]
[1755775509834,0.74,185.2,185.19,131.42]
[1755775510232,0.06,185.2,185.19,131.42]
[1755775512252,3.16665595,185.2,185.19,131.42]
[1755775512640,3.16665595,185.2,185.19,89.68]
[1755775512837,3.16665595,185.2,185.19,131.42]
[1755775513533,3.84665595,185.2,185.19,131.42]
[1755775513754,3.16665595,185.2,185.19,131.42]
[1755775514551,3.16665595,185.2,185.19,132.08]
[1755775514741,0.06,185.2,185.19,132.08]
[1755775514933,0.74,185.2,185.19,131.42]
[1755775515127,0.06,185.2,185.19,131.42]
[1755775515345,0.06,185.2,185.19,132.08]
[1755775516430,0.06,185.2,185.19,131.42]
[1755775517056,3.16665595,185.2,185.19,89.68]
[1755775517353,3.16665595,185.2,185.19,131.42]
[1755775518253,3.16665595,185.2,185.19,131.4]
[1755775519661,0.06,185.2,185.19,132.1]
[1755775523162,0.06,185.2,185.19,131.4]
[1755775523350,0.06,185.2,185.19,132.1]
[1755775528659,0.06,185.2,185.19,131.4]
[1755775532446,0.06,185.2,185.19,132.1]
[1755775533563,0.06,185.2,185.19,131.4]
[1755775534046,0.06,185.2,185.19,132.1]
[1755775534451,3.88665595,185.2,185.19,79.71]
[1755775534757,3.88665595,185.2,185.19,89.71]
[1755775535163,3.88665595,185.2,185.19,79.71]
[1755775535571,3.88665595,185.2,185.19,89.71]
[1755775536758,3.88665595,185.2,185.19,79.71]
[1755775538878,3.88665595,185.2,185.19,0.03]
[1755775539558,3.88665595,185.2,185.19,10.03]
[1755775540668,3.88665595,185.2,185.19,0.03]
[1755775540876,3.88665595,185.2,185.19,10.03]
[1755775544483,3.16665595,185.2,185.19,10.03]
[1755775544789,3.16665595,185.2,185.19,89.83]
[1755775545493,3.88665595,185.2,185.19,89.83]
[1755775548473,3.88665595,185.2,185.19,79.83]
[1755775550598,3.88665595,185.2,185.19,0.03]
[1755775553973,3.16665595,185.2,185.19,0.03]
[1755775554200,3.16665595,185.2,185.19,10.03]
[1755775554392,3.16665595,185.2,185.19,0.03]
[1755775554589,3.16665595,185.2,185.19,10.03]
[1755775555300,3.16665595,185.2,185.19,0.03]
[1755775555498,3.16665595,185.2,185.19,10.03]
[1755775556609,3.16665595,185.2,185.19,131.53]
[1755775556995,3.86665595,185.2,185.19,131.53]
[1755775557188,3.86665595,185.2,185.19,121.53]
[1755775557377,3.86665595,185.2,185.19,131.53]
[1755775557987,3.86665595,185.2,185.19,89.83]
[1755775558189,3.86665595,185.2,185.19,131.53]
[1755775558500,3.86665595,185.2,185.19,121.53]
[1755775559113,3.86665595,185.2,185.19,79.83]
[1755775559319,3.86665595,185.2,185.19,121.53]
[1755775559885,3.86665595,185.2,185.19,79.83]
[1755775560092,3.86665595,185.2,185.19,121.53]
[1755775560289,3.86665595,185.2,185.19,79.83]
[1755775561383,3.86665595,185.2,185.19,89.83]
[1755775562096,3.16665595,185.2,185.19,89.83]
[1755775562297,3.86665595,185.2,185.19,89.83]
[1755775562498,3.86665595,185.2,185.19,10.03]
[1755775563320,3.86665595,185.2,185.19,0.03]
[1755775563626,3.86665595,185.2,185.19,10.03]
[1755775564601,3.86665595,185.2,185.19,0.03]
[1755775564815,2.77,185.19,185.17,89.83]
[1755775565123,3.80665595,185.18,185.17,89.83]
[1755775565342,3.80665595,185.18,185.17,79.83]
[1755775566198,0.7,185.18,185.17,79.83]
[1755775566404,3.80665595,185.18,185.17,89.83]
[1755775566700,3.80665595,185.18,185.17,79.83]
[1755775567917,3.80665595,185.18,185.17,0.03]
[1755775568398,3.80665595,185.18,185.16,79.8]
[1755775568399,2.77,185.17,185.16,79.8]
[1755775568602,6.57665595,185.17,185.16,79.8]
[1755775570696,13.72822267,185.17,185.15,0.03]
[1755775570904,10.55342478,185.16,185.15,0.03]
[1755775571612,10.55311352,185.16,185.15,0.03]
[1755775571800,10.55311352,185.16,185.14,0.03]
[1755775572003,3.80665595,185.15,185.14,0.03]
[1755775578206,3.10665595,185.15,185.14,0.03]
[1755775580100,3.10665595,185.15,185.14,0.69]
[1755775580797,3.10665595,185.15,185.14,0.03]
[1755775581208,3.82665595,185.15,185.12,10.473]
[1755775581418,3.10665595,185.13,185.12,10.473]
[1755775581624,3.10665595,185.13,185.12,90.273]
[1755775582407,3.10665595,185.13,185.12,89.613]
[1755775582724,3.10665595,185.13,185.12,79.8]
[1755775584114,3.10665595,185.13,185.12,79.523]
[1755775584304,3.10665595,185.13,185.12,89.996]
[1755775585333,3.10665595,185.13,185.12,80.183]
[1755775585520,3.10665595,185.13,185.12,89.996]
[1755775586106,3.10665595,185.13,185.12,10.473]
[1755775586311,3.10665595,185.13,185.12,0.66]
[1755775586508,3.10665595,185.13,185.12,10.473]
[1755775586921,3.10665595,185.13,185.12,0.66]
[1755775587230,3.10665595,185.13,185.11,79.553]
[1755775587410,3.10665595,185.12,185.11,79.553]
[1755775587615,3.10665595,185.12,185.11,80.213]
[1755775588830,3.10665595,185.12,185.11,90.026]
[1755775591630,3.10665595,185.12,185.11,79.553]
[1755775592012,3.10665595,185.12,185.11,80.213]
[1755775594508,3.10665595,185.12,185.11,79.553]
[1755775594707,3.10665595,185.12,185.11,80.213]
[1755775596134,3.10665595,185.12,185.11,90.026]
[1755775596437,3.10665595,185.12,185.11,79.553]
[1755775597038,3.10665595,185.12,185.11,90.026]
[1755775597820,3.82665595,185.12,185.11,0.03]
[1755775598022,29.82665595,185.12,185.11,0.03]
[1755775598229,7.46645757,185.12,185.1,0.03]
[1755775598543,3.82665595,185.11,185.1,0.03]
[1755775601142,0.13437,185.07,185.06,0.03]
[1755775601342,3.24102595,185.07,185.06,0.03]
[1755775601955,3.96102595,185.07,185.06,0.03]
[1755775603048,17.55661996,185.07,185.05,0.03]
[1755775603238,3.10665595,185.01,185.0,0.2]
[1755775603817,3.82665595,185.01,185.0,0.2]
[1755775604017,3.10665595,185.01,185.0,0.2]
[1755775604234,3.10665595,185.01,184.99,9.78863]
[1755775604541,3.11467834,185.0,184.99,9.78863]
[1755775604843,4.86669879,185.0,184.99,9.78863]
[1755775605220,5.58669879,185.0,184.99,9.78863]
[1755775605423,4.86669879,185.0,184.98,0.2]
[1755775605736,4.86669879,184.99,184.98,0.2]
[1755775605933,4.86669879,184.99,184.98,9.98863]
[1755775606831,7.68783099,184.99,184.98,9.98863]
[1755775607344,7.68783099,184.99,184.98,0.2]
[1755775607544,7.68783099,184.99,184.98,9.98863]
[1755775607722,7.68783099,184.99,184.98,10.65863]
[1755775608037,4.86669879,184.99,184.98,9.98863]
[1755775609763,4.86669879,184.99,184.98,10.65863]
[1755775610235,0.65,185.02,184.98,10.65863]
[1755775610437,4.86669879,184.99,184.98,10.65863]
[1755775610851,4.86669879,184.99,184.98,0.87]
[1755775611030,5.51669879,185.04,184.99,9.78863]
[1755775611232,4.86669879,185.0,184.99,9.78863]
[1755775612652,4.86669879,185.0,184.99,89.31163]
[1755775613256,4.86669879,185.0,184.99,79.523]
[1755775613560,5.51669879,185.0,184.99,89.31163]
[1755775614028,4.86669879,185.0,184.99,89.31163]
[1755775614228,4.86669879,185.0,184.99,89.109697]
[1755775614632,4.86669879,185.0,184.99,89.779697]
[1755775614837,7.68787033,185.0,184.99,89.779697]
[1755775615358,2.82117154,185.0,184.99,89.779697]
[1755775615658,7.68787033,185.0,184.99,89.779697]
[1755775616337,7.68787033,185.0,184.99,79.991067]
[1755775616545,7.68787033,185.0,184.99,89.109697]
[1755775617160,7.68787033,185.0,184.99,89.779697]
[1755775617571,7.68787033,185.0,184.99,79.991067]
[1755775617858,7.68787033,185.0,184.99,89.779697]
[1755775619235,7.68787033,185.0,184.99,131.459697]
[1755775619562,7.68787033,185.0,184.99,121.671067]
[1755775619750,7.68787033,185.0,184.99,130.789697]
[1755775620139,7.68787033,185.0,184.99,79.321067]
[1755775620365,8.33787033,185.0,184.99,89.109697]
[1755775620866,7.68787033,185.0,184.99,89.109697]
[1755775621258,8.33787033,185.0,184.98,0.2]
[1755775621556,5.51669879,184.99,184.98,51.66863]
[1755775621867,5.51669879,184.99,184.98,9.98863]
[1755775622049,4.86669879,184.99,184.98,9.98863]
[1755775622750,4.86669879,184.99,184.98,10.65863]
[1755775622951,4.86669879,184.99,184.98,9.98863]
[1755775624471,4.86687451,184.99,184.98,9.98863]
[1755775624672,3.11480986,184.99,184.98,9.98863]
[1755775624866,2.82117154,185.0,184.98,10.65863]
[1755775625055,2.82117154,185.0,184.99,52.13863]
[1755775625761,2.82117154,185.0,184.99,131.2779573]
[1755775625969,0.06,185.02,185.0,9.78863]
[1755775626164,3.11480986,185.01,185.0,9.78863]
[1755775626348,3.11480986,185.01,185.0,51.46863]
[1755775626546,5.93555161,185.01,185.0,41.68]
[1755775626766,5.93555161,185.01,185.0,51.46863]
[1755775627341,5.93555161,185.01,185.0,41.68]
[1755775627662,5.93555161,185.01,185.0,51.46863]
[1755775628051,5.93555161,185.01,185.0,52.13863]
[1755775628649,5.93555161,185.01,185.0,51.46863]
[1755775629272,6.58555161,185.01,185.0,41.68]
[1755775629447,6.58555161,185.01,185.0,51.46863]
[1755775629643,5.93555161,185.01,185.0,10.45863]
[1755775629874,6.58555161,185.01,184.99,67.68]
[1755775630172,3.76480986,185.0,184.99,67.68]
[1755775630374,3.76480986,185.0,184.98,9.98863]
[1755775630548,3.11480986,184.99,184.98,51.66863]
[1755775631066,3.76480986,184.99,184.98,41.88]
[1755775631264,3.11480986,184.99,184.98,41.71643427]
[1755775631452,3.11480986,184.99,184.98,51.50506427]
[1755775632374,3.11495238,184.99,184.98,41.71643427]
[1755775632574,3.11495238,184.99,184.98,51.50506427]
[1755775632778,4.86712479,184.99,184.98,51.50506427]
[1755775633077,4.92712479,184.99,184.98,51.50506427]
[1755775633380,4.92712479,184.99,184.98,50.0329727]
[1755775633878,4.92712479,184.99,184.98,40.2443427]
[1755775634051,4.92712479,184.99,184.98,50.0329727]
[1755775634246,4.92712479,184.99,184.98,40.2443427]
[1755775634454,4.92712479,184.99,184.98,50.0329727]
[1755775636549,4.92712479,184.99,184.98,50.6929727]
[1755775637465,4.92712479,184.99,184.98,50.0329727]
[1755775637661,4.92712479,184.99,184.98,40.9043427]
[1755775637862,4.92712479,184.99,184.98,50.6929727]
[1755775638376,0.06,184.99,184.98,50.6929727]
[1755775643673,4.92712479,184.99,184.98,51.44863]
[1755775644679,4.92712479,184.99,184.98,52.10863]
[1755775645883,0.06,184.99,184.98,52.10863]
[1755775648687,4.92712479,184.99,184.98,51.44863]
[1755775649263,4.92712479,184.99,184.98,9.78863]
[1755775649487,5.62712479,184.99,184.98,41.66]
[1755775649677,5.62712479,184.99,184.98,51.47863]
[1755775649860,8.44812708,184.99,184.98,41.69]
[1755775650063,8.44812708,184.99,184.98,51.47863]
[1755775650787,8.44812708,184.99,184.98,41.69]
[1755775651185,8.44812708,184.99,184.98,51.47863]
[1755775651369,8.44812708,184.99,184.98,41.69]
[1755775653702,8.44812708,184.99,184.98,51.47863]
[1755775655276,8.44812708,184.99,184.98,41.69]
[1755775655595,8.44812708,184.99,184.98,51.47863]
[1755775655775,8.44812708,184.99,184.98,41.69]
[1755775655966,8.44812708,184.99,184.98,51.47863]
[1755775656373,8.44812708,184.99,184.98,41.69]
[1755775656578,7.74812708,184.99,184.98,51.47863]
[1755775656784,2.88100229,184.99,184.98,52.13863]
[1755775657012,7.74812708,184.99,184.98,52.13863]
[1755775657368,2.88100229,184.99,184.98,52.13863]
[1755775657567,0.06,184.99,184.98,52.13863]
[1755775659071,0.06,184.99,184.98,10.47863]
[1755775659273,0.06,184.99,184.98,52.13863]
[1755775659670,0.06,184.99,184.98,51.47863]
[1755775659878,5.62712479,184.99,184.98,9.81863]
[1755775660073,5.62712479,184.99,184.98,0.03]
[1755775661186,9.25596114,184.99,184.98,0.03]
[1755775661390,5.62712479,184.99,184.98,0.03]
[1755775661605,9.25596114,184.99,184.98,0.03]
[1755775661774,5.62712479,184.99,184.98,0.03]
[1755775662105,26.90713886,184.99,184.98,0.03]
[1755775662404,31.45689088,184.99,184.98,0.03]
[1755775662788,39.59559401,184.97,184.96,0.03]
[1755775662988,48.09155515,184.97,184.96,0.03]
[1755775663381,52.84336027,184.97,184.96,0.03]
[1755775665376,13.59559401,184.96,184.95,0.2]
[1755775665608,22.79155515,184.96,184.95,0.2]
[1755775666076,26.8402036,184.96,184.95,0.2]
[1755775666282,22.79155515,184.96,184.95,0.2]
[1755775673311,17.92443036,184.96,184.95,0.2]
[1755775673606,8.49596114,184.96,184.95,0.2]
[1755775674404,4.86712479,184.96,184.95,10.67863]
[1755775675688,3.69475439,184.99,184.95,10.67863]
[1755775675993,4.86712479,184.96,184.95,10.67863]
[1755775677987,7.68868729,184.96,184.95,10.67863]
[1755775678912,2.8215625,184.96,184.95,10.67863]
[1755775679089,7.68868729,184.96,184.95,10.67863]
[1755775679620,7.68868729,184.96,184.95,9.98863]
[1755775680205,8.38868729,184.96,184.95,0.2]
[1755775680515,8.38868729,184.96,184.95,9.98863]
[1755775681331,8.38868729,184.96,184.95,0.2]
[1755775682998,8.44868729,184.96,184.95,0.2]
[1755775683632,12.08344168,184.96,184.95,0.2]
[1755775686510,11.38344168,184.96,184.95,0.2]
[1755775687052,12.08344168,184.96,184.95,0.2]
[1755775690402,12.08344168,184.96,184.92,7.22663]
[1755775690614,4.86712479,184.93,184.92,7.22663]
[1755775691541,4.86712479,184.93,184.91,0.72]
[1755775691915,7.68923762,184.93,184.91,0.72]
[1755775692541,4.86712479,184.92,184.91,0.72]
[1755775693223,11.21667927,184.92,184.91,0.72]
[1755775693727,11.21667927,184.92,184.91,0.03]
[1755775693923,11.21667927,184.92,184.91,7.25663]
[1755775694133,11.91667927,184.92,184.91,0.03]
[1755775694527,14.85345951,184.92,184.91,0.03]
[1755775694924,14.85345951,184.92,184.91,7.25663]
[1755775695124,14.85345951,184.92,184.91,0.03]
[1755775695339,14.85345951,184.92,184.91,7.25663]
[1755775696340,14.85345951,184.92,184.91,0.03]
[1755775696542,14.85345951,184.92,184.91,7.25663]
[1755775698542,14.85345951,184.92,184.91,7.95663]
[1755775698741,8.50390503,184.92,184.91,7.95663]
[1755775698943,4.86712479,184.92,184.91,7.95663]
[1755775700253,2.82211283,184.93,184.91,7.95663]
[1755775700421,4.86712479,184.92,184.91,7.95663]
[1755775701227,4.86712479,184.92,184.91,7.25663]
[1755775701850,4.86712479,184.92,184.91,7.95663]
[1755775704458,2.82211283,184.93,184.92,7.22663]
[1755775704762,0.06,184.94,184.93,7.22663]
[1755775704924,4.92712479,184.94,184.93,7.92663]
[1755775711557,4.92712479,184.94,184.93,7.22663]
[1755775717166,0.06,184.94,184.93,7.22663]
[1755775717334,4.92712479,184.94,184.93,7.92663]
[1755775718965,4.92712479,184.94,184.93,7.22663]
[1755775720646,4.92712479,184.94,184.93,7.92663]
[1755775721156,5.64712479,184.94,184.93,7.22663]
[1755775722148,4.92712479,184.94,184.93,7.22663]
[1755775722348,4.92895413,184.94,184.93,7.22663]
[1755775722755,3.1761224,184.94,184.93,7.22663]
[1755775724854,3.1761224,184.94,184.93,7.92663]
[1755775725056,3.1761224,184.94,184.93,87.72663]
[1755775726360,0.06,184.94,184.93,7.92663]
[1755775727045,0.06,184.94,184.93,11.0427524]
[1755775727873,0.06,184.94,184.93,7.92663]
[1755775728172,0.06,184.94,184.93,11.0427524]
[1755775730473,0.06,184.94,184.93,11.04075383]
[1755775730679,0.06,184.94,184.93,12.79243919]
[1755775730875,0.06,184.94,184.93,118.59243919]
[1755775731056,0.06,184.94,184.93,132.1880332]
[1755775731258,0.06,184.94,184.93,135.0688172]
[1755775732668,0.06,184.94,184.93,176.6888172]
[1755775733961,0.06,184.96,184.95,79.74]
[1755775734249,0.06,184.96,184.95,91.83243919]
[1755775734678,0.06,184.96,184.95,92.49243919]
[1755775736175,0.06,184.96,184.95,86.96663]
[1755775738483,0.06,184.96,184.95,91.89244]
[1755775738667,0.06,184.96,184.95,92.55244]
[1755775740179,0.73,184.96,184.95,91.89244]
[1755775740488,0.06,184.96,184.95,91.89244]
[1755775740781,0.06,184.96,184.95,92.55244]
[1755775741984,0.06,184.96,184.95,134.15244]
[1755775743086,0.06,184.96,184.95,92.55244]
[1755775743385,0.06,184.96,184.95,134.15244]
[1755775743582,0.06,184.96,184.95,92.55244]
[1755775743764,0.06,184.96,184.95,134.15244]
[1755775744176,0.06,184.96,184.95,139.01824919]
[1755775744372,0.06,184.96,184.95,165.01824919]
[1755775744989,0.06,184.96,184.95,123.41824919]
[1755775745291,0.06,184.96,184.95,165.01824919]
[1755775745674,0.06,184.96,184.95,160.15244]
[1755775745876,0.06,184.96,184.95,165.01824919]
[1755775748389,0.06,184.96,184.95,160.15244]
[1755775749378,0.06,184.96,184.95,118.55244]
[1755775749584,0.06,184.96,184.95,160.15244]
[1755775750704,0.06,184.96,184.95,159.49244]
[1755775750868,0.73,184.96,184.95,159.49244]
[1755775751191,0.73,184.96,184.95,128.56663]
[1755775752069,0.73,184.96,184.95,131.680694]
[1755775752277,0.06,184.96,184.95,131.680694]
[1755775754628,0.06,184.96,184.95,132.340694]
[1755775754811,0.06,184.96,184.95,131.680694]
[1755775756107,0.06,184.96,184.95,135.45475717]
[1755775756592,0.06,184.96,184.95,132.340694]
[1755775757305,0.06,184.96,184.95,131.680694]
[1755775758984,0.06,184.96,184.95,135.49475717]
[1755775760687,0.06,184.96,184.95,132.380694]
[1755775763486,2.88078459,184.98,184.96,79.68]
[1755775763683,0.06,184.98,184.97,48.80663]
[1755775763903,0.06,184.98,184.97,49.50663]
[1755775764512,0.06,184.98,184.97,7.22663]
[1755775764717,0.06,184.98,184.97,51.980694]
[1755775769114,0.06,184.98,184.97,77.980694]
[1755775769517,3.87406317,184.98,184.97,157.660694]
[1755775769721,3.87406317,184.98,184.97,116.080694]
[1755775770037,3.87406317,184.98,184.97,154.48663]
[1755775771343,3.87406317,184.98,184.97,158.360694]
[1755775771836,0.06,184.98,184.97,159.060694]
[1755775780824,0.06,184.98,184.97,158.360694]
[1755775781430,0.06,184.98,184.97,116.780694]
[1755775781622,0.76,184.98,184.97,116.780694]
[1755775781822,0.76,184.98,184.97,158.340694]
[1755775783533,0.06,184.98,184.97,159.040694]
[1755775785149,0.06,184.98,184.97,117.480694]
[1755775785357,0.06,184.98,184.97,158.340694]
[1755775786937,0.06,184.98,184.97,174.600694]
[1755775787123,0.06,184.98,184.97,158.340694]
[1755775787544,0.06,184.98,184.97,159.050694]
[1755775787931,0.06,184.98,184.97,158.340694]
[1755775788524,0.06,184.98,184.97,159.050694]
[1755775792446,0.06,184.98,184.97,158.340694]
[1755775792618,0.06,184.98,184.97,159.050694]
[1755775792821,0.06,184.98,184.97,158.340694]
[1755775793048,0.06,184.98,184.97,116.780694]
[1755775793255,0.06,184.98,184.97,158.340694]
[1755775795328,0.75,184.98,184.97,158.340694]
[1755775797934,0.06,184.98,184.97,158.340694]
[1755775800156,0.06,184.98,184.97,116.780694]
[1755775800362,3.86406317,184.98,184.97,90.780694]
[1755775800536,3.86406317,184.98,184.97,128.44663]
[1755775801140,3.86406317,184.98,184.97,86.90663]
[1755775801333,7.51351229,184.98,184.96,0.03]
[1755775801533,10.25351229,184.97,184.94,0.03]
[1755775801742,3.11406317,184.95,184.94,0.03]
[1755775801952,0.69,184.96,184.94,7.25663]
[1755775802156,3.11406317,184.95,184.94,7.25663]
[1755775802368,3.49,184.97,184.96,7.22663]
[1755775802663,3.49,184.97,184.96,48.76663]
[1755775803462,6.60406317,184.97,184.96,48.76663]
[1755775803672,2.8,184.97,184.96,49.47663]
[1755775807208,0.06,184.98,184.97,7.22663]
[1755775807358,0.06,184.98,184.97,90.85069317]